fUST/lending_fUST_20240113
["ID","MTS","AMOUNT","RATE_DAILY","PERIOD"]
[311396210,1705077043969,-500.0,0.0002356,2]
[311396212,1705077043978,-500.0,0.0002356,2]
[311396214,1705077043987,-500.0,0.0002356,2]
[311396216,1705077043996,-620.78,0.0002356,2]
[311396218,1705077044005,-500.0,0.0002356,2]
[311396220,1705077044014,-1131.75,0.0002356,2]
[311396222,1705077044023,-500.0,0.0002356,2]
[311396224,1705077044033,-500.0,0.0002356,2]
[311396226,1705077044045,-500.0,0.0002356,2]
[311396228,1705077044054,-504.3,0.0002356,2]
[311396230,1705077044063,-562.58,0.0002356,2]
[311396232,1705077044072,-500.0,0.0002356,2]
[311396234,1705077044081,-500.0,0.0002356,2]
[311396236,1705077044090,-581.76926559,0.0002356,2]
[311396238,1705077044099,-1526.16,0.0002356,2]
[311396240,1705077044108,-787.58,0.0002356,2]
[311396242,1705077044117,-500.0,0.0002356,2]
[311396244,1705077044126,-500.0,0.00023561,2]
[311396246,1705077044136,-500.0,0.00023561,2]
[311396248,1705077044147,-500.0,0.00023561,2]
[311396250,1705077044155,-500.0,0.00023561,2]
[311396252,1705077044164,-500.0,0.00023561,2]
[311396254,1705077044174,-616.66,0.00023561,2]
[311396256,1705077044183,-700.41,0.00023561,2]
[311396258,1705077044192,-536.48,0.00023561,2]
[311396260,1705077044202,-2926.2,0.00023561,2]
[311396262,1705077044212,-500.0,0.00023561,2]
[311396264,1705077044221,-500.0,0.00023561,2]
[311396266,1705077044231,-1082.8,0.00023561,2]
[311396268,1705077044239,-580.37,0.00023561,2]
[311396270,1705077044249,-6480.9,0.00023561,2]
[311396272,1705077044257,-500.0,0.00023561,2]
[311396274,1705077044268,-500.0,0.00023561,2]
[311396277,1705077044281,-213.64601716,0.00023822,2]
[311396279,1705077044294,-776.67489849,0.00023826,2]
[311396282,1705077044308,-500.0,0.00023834,2]
[311396284,1705077044322,-500.0,0.00023834,2]
[311396286,1705077044332,-500.0,0.00023834,2]
[311396288,1705077044344,-503.34416239,0.00023834,2]
[311396291,1705077044356,-500.0,0.00023834,2]
[311396293,1705077044368,-299.07,0.00023834,2]
[311396296,1705077044382,-500.0,0.00023834,2]
[311396298,1705077044396,-500.0,0.00023834,2]
[311396300,1705077044409,-500.0,0.00023834,2]
[311396303,1705077044422,-500.0,0.00023834,2]
[311396305,1705077044432,-500.0,0.00023834,2]
[311396307,1705077044444,-515.88796957,0.00023834,2]
[311396309,1705077044456,-500.0,0.00023834,2]
[311396312,1705077044468,-500.0,0.00023834,2]
[311396314,1705077044481,-500.0,0.00023834,2]
[311396316,1705077044494,-1131.75,0.00023834,2]
[311396318,1705077044506,-500.0,0.00023834,2]
[311396321,1705077044519,-500.0,0.00023834,2]
[311396323,1705077044530,-500.0,0.00023834,2]
[311396325,1705077044541,-504.3,0.00023834,2]
[311396327,1705077044555,-562.58,0.00023834,2]
[311396330,1705077044568,-500.0,0.00023834,2]
[311396332,1705077044581,-500.0,0.00023834,2]
[311396334,1705077044592,-1526.16,0.00023834,2]
[311396337,1705077044604,-787.58,0.00023834,2]
[311396339,1705077044616,-500.0,0.00023834,2]
[311396341,1705077044628,-500.0,0.00023835,2]
[311396343,1705077044640,-500.0,0.00023835,2]
[311396346,1705077044652,-500.0,0.00023835,2]
[311396348,1705077044665,-500.0,0.00023835,2]
[311396351,1705077044677,-500.0,0.00023835,2]
[311396353,1705077044689,-616.66,0.00023835,2]
[311396355,1705077044701,-700.41,0.00023835,2]
[311396357,1705077044712,-536.48,0.00023835,2]
[311396359,1705077044721,-2926.2,0.00023835,2]
[311396362,1705077044731,-500.0,0.00023835,2]
[311396364,1705077044742,-500.0,0.00023835,2]
[311396366,1705077044753,-1082.8,0.00023835,2]
[311396368,1705077044765,-580.37,0.00023835,2]
[311396369,1705077044776,-6480.9,0.00023835,2]
[311396370,1705077044787,-230.73282213,0.00023835,2]
[311396371,1705077044799,-500.0,0.00023835,2]
[311396372,1705077044809,-269.0,0.00023866,2]
[311396373,1705077044818,-496.62983607,0.000239,5]
[311396374,1705077044828,-166.666666,0.00023969,2]
[311396375,1705077044838,-280.0,0.0002405,7]
[311396376,1705077044849,-262.447805,0.00024107,2]
[311396377,1705077044860,-727.50184734,0.00024108,2]
[311396378,1705077044871,-238.78449846,0.00024108,2]
[311396379,1705077044881,-500.0,0.00024108,2]
[311396380,1705077044892,-500.0,0.00024108,2]
[311396381,1705077044903,-500.0,0.00024108,2]
[311396382,1705077044913,-500.0,0.00024108,2]
[311396384,1705077044924,-500.0,0.00024108,2]
[311396387,1705077044935,-500.0,0.00024108,2]
[311396389,1705077044945,-1131.75,0.00024108,2]
[311396391,1705077044956,-605.24,0.00024108,2]
[311396393,1705077044966,-500.0,0.00024108,2]
[311396395,1705077044977,-504.3,0.00024108,2]
[311396397,1705077044988,-562.58,0.00024108,2]
[311396399,1705077044998,-500.0,0.00024108,2]
[311396402,1705077045009,-500.0,0.00024108,2]
[311396404,1705077045019,-1526.16,0.00024108,2]
[311396406,1705077045031,-787.58,0.00024108,2]
[311396408,1705077045042,-500.0,0.00024108,2]
[311396410,1705077045053,-500.0,0.00024109,2]
[311396412,1705077045063,-500.0,0.00024109,2]
[311396415,1705077045073,-500.0,0.00024109,2]
[311396417,1705077045084,-500.0,0.00024109,2]
[311396419,1705077045095,-500.0,0.00024109,2]
[311396421,1705077045106,-616.66,0.00024109,2]
[311396423,1705077045116,-700.41,0.00024109,2]
[311396425,1705077045127,-536.48,0.00024109,2]
[311396428,1705077045139,-2926.2,0.00024109,2]
[311396430,1705077045150,-500.0,0.00024109,2]
[311396432,1705077045160,-500.0,0.00024109,2]
[311396434,1705077045170,-1082.8,0.00024109,2]
[311396436,1705077045181,-580.37,0.00024109,2]
[311396438,1705077045192,-6480.9,0.00024109,2]
[311396441,1705077045203,-500.0,0.00024109,2]
[311396443,1705077045214,-500.0,0.00024382,2]
[311396446,1705077045226,-500.0,0.00024382,2]
[311396449,1705077045236,-500.0,0.00024382,2]
[311396451,1705077045247,-368.20493554,0.00024382,2]
[311396454,1705077045258,-500.0,0.00024382,2]
[311396456,1705077045268,-1131.75,0.00024382,2]
[311396458,1705077045279,-500.0,0.00024382,2]
[311396461,1705077045290,-504.3,0.00024382,2]
[311396464,1705077045302,-562.58,0.00024382,2]
[311396468,1705077045313,-500.0,0.00024382,2]
[311396470,1705077045324,-500.0,0.00024382,2]
[311396472,1705077045333,-1526.16,0.00024382,2]
[311396488,1705077045449,-787.58,0.00024382,2]
[311396493,1705077045469,-500.0,0.00024383,2]
[311396496,1705077045482,-500.0,0.00024383,2]
[311396499,1705077045492,-500.0,0.00024383,2]
[311396502,1705077045501,-500.0,0.00024383,2]
[311396504,1705077045511,-500.0,0.00024383,2]
[311396507,1705077045520,-616.66,0.00024383,2]
[311396510,1705077045529,-700.41,0.00024383,2]
[311396513,1705077045537,-536.48,0.00024383,2]
[311396516,1705077045546,-2926.2,0.00024383,2]
[311396518,1705077045555,-500.0,0.00024383,2]
[311396521,1705077045564,-500.0,0.00024383,2]
[311396524,1705077045574,-1082.8,0.00024383,2]
[311396528,1705077045584,-580.37,0.00024383,2]
[311396530,1705077045593,-6480.9,0.00024383,2]
[311396533,1705077045602,-500.0,0.00024383,2]
[311396537,1705077045612,-166.666666,0.00024482,2]
[311396539,1705077045623,-500.0,0.00024656,2]
[311396542,1705077045632,-500.0,0.00024656,2]
[311396545,1705077045642,-500.0,0.00024656,2]
[311396548,1705077045651,-500.0,0.00024656,2]
[311396551,1705077045661,-1131.75,0.00024656,2]
[311396554,1705077045670,-500.0,0.00024656,2]
[311396557,1705077045679,-504.3,0.00024656,2]
[311396560,1705077045688,-562.58,0.00024656,2]
[311396562,1705077045697,-500.0,0.00024656,2]
[311396564,1705077045706,-500.0,0.00024656,2]
[311396566,1705077045715,-1526.16,0.00024656,2]
[311396568,1705077045724,-787.58,0.00024656,2]
[311396570,1705077045734,-551.35486565,0.00024657,2]
[311396572,1705077045744,-500.0,0.00024657,2]
[311396574,1705077045753,-500.0,0.00024657,2]
[311396576,1705077045762,-500.0,0.00024657,2]
[311396578,1705077045771,-500.0,0.00024657,2]
[311396580,1705077045780,-500.0,0.00024657,2]
[311396582,1705077045789,-616.66,0.00024657,2]
[311396584,1705077045798,-1000.0,0.00024657,2]
[311396585,1705077045807,-700.41,0.00024657,2]
[311396588,1705077045817,-536.48,0.00024657,2]
[311396589,1705077045826,-2926.2,0.00024657,2]
[311396591,1705077045835,-500.0,0.00024657,2]
[311396593,1705077045844,-500.0,0.00024657,2]
[311396595,1705077045853,-1082.8,0.00024657,2]
[311396597,1705077045863,-580.37,0.00024657,2]
[311396599,1705077045872,-6480.9,0.00024657,2]
[311396601,1705077045881,-500.0,0.00024657,2]
[311396603,1705077045891,-280.0,0.00024658,2]
[311396605,1705077045899,-200.0,0.00024658,2]
[311396607,1705077045909,-213.64601716,0.00024825,2]
[311396609,1705077045918,-261.7761853,0.00024826,2]
[311396611,1705077045927,-299.26264437,0.00024827,2]
[311396613,1705077045937,-226.54190222,0.0002493,2]
[311396615,1705077045946,-315.18836394,0.0002493,2]
[311396617,1705077045955,-500.0,0.0002493,2]
[311396619,1705077045965,-1131.75,0.0002493,2]
[311396621,1705077045974,-500.0,0.0002493,2]
[311396623,1705077045984,-504.3,0.0002493,2]
[311396625,1705077045993,-562.58,0.0002493,2]
[311396627,1705077046003,-500.0,0.0002493,2]
[311396629,1705077046012,-500.0,0.0002493,2]
[311396631,1705077046020,-1526.16,0.0002493,2]
[311396633,1705077046029,-787.58,0.0002493,2]
[311396635,1705077046038,-500.0,0.00024931,2]
[311396637,1705077046047,-627.06374302,0.00024931,2]
[311396639,1705077046056,-500.0,0.00024931,2]
[311396641,1705077046065,-500.0,0.00024931,2]
[311396643,1705077046075,-500.0,0.00024931,2]
[311396645,1705077046084,-616.66,0.00024931,2]
[311396647,1705077046094,-700.41,0.00024931,2]
[311396649,1705077046102,-536.48,0.00024931,2]
[311396651,1705077046112,-2926.2,0.00024931,2]
[311396653,1705077046121,-500.0,0.00024931,2]
[311396655,1705077046130,-500.0,0.00024931,2]
[311396657,1705077046140,-1082.8,0.00024931,2]
[311396659,1705077046149,-580.37,0.00024931,2]
[311396661,1705077046158,-6480.9,0.00024931,2]
[311396663,1705077046167,-500.0,0.00024931,2]
[311396665,1705077046177,-2531.60282882,0.00025,2]
[311396684,1705077046409,-500.0,0.00022464,2]
[311396685,1705077046418,-824.26,0.00025,2]
[311396686,1705077046430,-1356.71600583,0.00025,2]
[311396687,1705077046439,-155.01395126,0.00025,2]
[311396688,1705077046449,-309.96908058,0.00025,2]
[311396689,1705077046458,-236.11928791,0.00025,2]
[311396690,1705077046467,-197.96208464,0.00025,2]
[311396691,1705077046477,-677.62834989,0.00025,2]
[311396692,1705077046490,-155.2351122,0.00025,2]
[311396693,1705077046499,-500.0,0.00025,2]
[311396694,1705077046508,-14161.1957851,0.00025,2]
[311396695,1705077046519,-2000.0,0.00025,2]
[311396696,1705077046528,-1005.00981984,0.00025,2]
[311396697,1705077046537,-2000.0,0.0002501,2]
[311396698,1705077046546,-240.010066,0.0002501,2]
[311396699,1705077046556,-240.010066,0.0002501,2]
[311396700,1705077046566,-627.83374492,0.00025017,2]
[311396701,1705077046576,-2000.0,0.0002502,2]
[311396702,1705077046586,-2000.0,0.0002503,2]
[311396703,1705077046595,-2000.0,0.0002504,2]
[311396704,1705077046605,-2000.0,0.0002505,2]
[311396705,1705077046615,-1921.403531,0.0002505,2]
[311396706,1705077046625,-539.70398002,0.0002505,2]
[311396707,1705077046637,-1381.69955098,0.0002505,2]
[311396708,1705077046647,-460.96128,0.0002505,2]
[311396709,1705077046656,-460.96128,0.0002505,2]
[311396710,1705077046665,-2000.0,0.0002506,2]
[311396711,1705077046675,-100.77788902,0.00025069,2]
[311396712,1705077046687,-3299.3859684,0.00025069,2]
[311396713,1705077046699,-4454.17864728,0.00025069,2]
[311396718,1705077047102,-620.14389681,0.00025069,2]
[311396719,1705077047174,-500.0,0.00021917,2]
[311396720,1705077047184,-760.74035549,0.00022464,2]
[311396721,1705077047195,-341.71244629,0.00022464,2]
[311396722,1705077047204,-4581.62442198,0.00025069,2]
[311396723,1705077047216,-36943.88917651,0.00025069,2]
[311396724,1705077047225,-2000.0,0.0002507,2]
[311396725,1705077047236,-2000.0,0.0002508,2]
[311396726,1705077047245,-2000.0,0.0002509,2]
[311396727,1705077047255,-2000.0,0.000251,2]
[311396728,1705077047264,-2000.0,0.0002511,2]
[311396729,1705077047274,-2000.0,0.0002512,2]
[311396730,1705077047284,-2000.0,0.0002513,2]
[311396731,1705077047294,-2000.0,0.0002514,2]
[311396732,1705077047303,-2000.0,0.0002515,2]
[311396733,1705077047313,-2000.0,0.0002516,2]
[311396734,1705077047322,-2000.0,0.0002517,2]
[311396735,1705077047332,-2000.0,0.0002518,2]
[311396736,1705077047341,-2101.205752,0.0002519,2]
[311396737,1705077047350,-302.24,0.00025204,2]
[311396738,1705077047360,-1131.75,0.00025204,2]
[311396739,1705077047369,-500.0,0.00025204,2]
[311396740,1705077047378,-504.3,0.00025204,2]
[311396741,1705077047388,-562.58,0.00025204,2]
[311396742,1705077047398,-294.46748194,0.00025204,2]
[311396743,1705077047408,-500.0,0.00025204,2]
[311396744,1705077047418,-1526.16,0.00025204,2]
[311396745,1705077047427,-787.58,0.00025204,2]
[311396746,1705077047436,-500.0,0.00025205,2]
[311396747,1705077047446,-500.0,0.00025205,2]
[311396748,1705077047456,-500.0,0.00025205,2]
[311396749,1705077047465,-500.0,0.00025205,2]
[311396750,1705077047475,-616.66,0.00025205,2]
[311396751,1705077047484,-700.41,0.00025205,2]
[311396752,1705077047494,-536.48,0.00025205,2]
[311396753,1705077047506,-2926.2,0.00025205,2]
[311396754,1705077047516,-302.95412328,0.00025205,2]
[311396755,1705077047526,-500.0,0.00025205,2]
[311396756,1705077047535,-1082.8,0.00025205,2]
[311396757,1705077047545,-580.37,0.00025205,2]
[311396758,1705077047555,-6480.9,0.00025205,2]
[311396759,1705077047564,-500.0,0.00025205,2]
[311396760,1705077047574,-153.0,0.00025205,2]
[311396761,1705077047583,-153.0,0.00025205,2]
[311396762,1705077047593,-317.5239318,0.00025205,2]
[311396763,1705077047603,-153.0,0.00025205,2]
[311396764,1705077047612,-153.0,0.00025205,2]
[311396765,1705077047621,-198.7196112,0.00025205,2]
[311396766,1705077047631,-153.0,0.00025205,2]
[311396767,1705077047641,-153.0,0.00025205,2]
[311396768,1705077047651,-198.7196112,0.00025205,2]
[311396769,1705077047660,-153.0,0.00025205,2]
[311396770,1705077047669,-153.0,0.00025205,2]
[311396771,1705077047679,-198.7196112,0.00025205,2]
[311396772,1705077047689,-240.010066,0.00025297,2]
[311396773,1705077047698,-240.010066,0.00025297,2]
[311396774,1705077047707,-7193.15698043,0.00025297,2]
[311396775,1705077047716,-153.0,0.00025342,2]
[311396776,1705077047726,-153.0,0.00025342,2]
[311396777,1705077047735,-153.0,0.00025342,2]
[311396778,1705077047744,-153.0,0.00025342,2]
[311396779,1705077047753,-153.0,0.00025342,2]
[311396780,1705077047763,-153.0,0.00025342,2]
[311396781,1705077047773,-153.0,0.00025342,2]
[311396782,1705077047783,-153.0,0.00025342,2]
[311396783,1705077047792,-153.0,0.00025342,2]
[311396784,1705077047894,-153.0,0.00025342,2]
[311396785,1705077047907,-153.0,0.00025342,2]
[311396786,1705077047917,-1131.75,0.00025478,2]
[311396787,1705077047926,-500.0,0.00025478,2]
[311396788,1705077047935,-504.3,0.00025478,2]
[311396789,1705077047944,-562.58,0.00025478,2]
[311396790,1705077047954,-500.0,0.00025478,2]
[311396791,1705077047963,-1526.16,0.00025478,2]
[311396792,1705077047972,-787.58,0.00025478,2]
[311396793,1705077047981,-1921.403531,0.00025479,2]
[311396794,1705077047990,-1921.403531,0.00025479,2]
[311396795,1705077047999,-460.96128,0.00025479,2]
[311396796,1705077048009,-460.96128,0.00025479,2]
[311396797,1705077048018,-500.0,0.00025479,2]
[311396798,1705077048028,-368.4129864,0.00025479,2]
[311396799,1705077048037,-596.53749875,0.00025479,2]
[311396800,1705077048046,-500.0,0.00025479,2]
[311396801,1705077048056,-616.66,0.00025479,2]
[311396802,1705077048065,-700.41,0.00025479,2]
[311396803,1705077048074,-536.48,0.00025479,2]
[311396804,1705077048084,-2926.2,0.00025479,2]
[311396805,1705077048093,-500.0,0.00025479,2]
[311396806,1705077048102,-1082.8,0.00025479,2]
[311396807,1705077048112,-580.37,0.00025479,2]
[311396808,1705077048121,-6480.9,0.00025479,2]
[311396809,1705077048130,-500.0,0.00025479,2]
[311396810,1705077048142,-687.75702701,0.000257,2]
[311396811,1705077048151,-1131.75,0.00025752,2]
[311396812,1705077048160,-500.0,0.00025752,2]
[311396813,1705077048170,-504.3,0.00025752,2]
[311396814,1705077048179,-562.58,0.00025752,2]
[311396815,1705077048189,-500.0,0.00025752,2]
[311396816,1705077048198,-1526.16,0.00025752,2]
[311396817,1705077048207,-787.58,0.00025752,2]
[311396818,1705077048216,-500.0,0.00025753,2]
[311396819,1705077048226,-500.0,0.00025753,2]
[311396820,1705077048235,-616.66,0.00025753,2]
[311396821,1705077048245,-700.41,0.00025753,2]
[311396822,1705077048254,-536.48,0.00025753,2]
[311396824,1705077048263,-2926.2,0.00025753,2]
[311396826,1705077048273,-500.0,0.00025753,2]
[311396828,1705077048283,-1082.8,0.00025753,2]
[311396830,1705077048292,-580.37,0.00025753,2]
[311396832,1705077048302,-6480.9,0.00025753,2]
[311396835,1705077048312,-500.0,0.00025753,2]
[311396837,1705077048322,-213.64601716,0.00025827,2]
[311396839,1705077048332,-151.0,0.00025927,2]
[311396840,1705077048341,-151.0,0.00025927,2]
[311396842,1705077048350,-1273.38801722,0.00026,2]
[311396844,1705077048360,-3682.79871954,0.00026,2]
[311396847,1705077048371,-240.76691896,0.00026,2]
[311396849,1705077048380,-1131.75,0.00026026,2]
[311396850,1705077048392,-500.0,0.00026026,2]
[311396853,1705077048402,-504.3,0.00026026,2]
[311396855,1705077048413,-562.58,0.00026026,2]
[311396857,1705077048423,-500.0,0.00026026,2]
[311396859,1705077048432,-1526.16,0.00026026,2]
[311396861,1705077048442,-787.58,0.00026026,2]
[311396863,1705077048451,-500.0,0.00026027,2]
[311396865,1705077048462,-500.0,0.00026027,2]
[311396866,1705077048471,-616.66,0.00026027,2]
[311396868,1705077048486,-700.41,0.00026027,2]
[311396870,1705077048495,-536.48,0.00026027,2]
[311396873,1705077048505,-2926.2,0.00026027,2]
[311396874,1705077048515,-500.0,0.00026027,2]
[311396876,1705077048526,-1082.8,0.00026027,2]
[311396879,1705077048536,-580.37,0.00026027,2]
[311396881,1705077048545,-6480.9,0.00026027,2]
[311396883,1705077048555,-500.0,0.00026027,2]
[311396884,1705077048567,-153.0,0.00026027,2]
[311396886,1705077048577,-153.0,0.00026027,2]
[311396889,1705077048587,-153.0,0.00026027,2]
[311396890,1705077048596,-247.4862076,0.00026027,2]
[311396893,1705077048605,-153.0,0.00026027,2]
[311396894,1705077048615,-153.0,0.00026027,2]
[311396896,1705077048625,-153.0,0.00026027,2]
[311396898,1705077048634,-153.0,0.00026027,2]
[311396900,1705077048647,-153.0,0.00026027,2]
[311396902,1705077048657,-153.0,0.00026027,2]
[311396904,1705077048667,-153.0,0.00026027,2]
[311396906,1705077048675,-153.0,0.00026027,2]
[311396908,1705077048684,-153.0,0.00026027,2]
[311396910,1705077048694,-153.0,0.00026027,2]
[311396912,1705077048708,-153.0,0.00026027,2]
[311396914,1705077048717,-153.0,0.00026027,2]
[311396916,1705077048727,-153.0,0.00026027,2]
[311396918,1705077048741,-153.0,0.00026027,2]
[311396920,1705077048749,-153.0,0.00026027,2]
[311396922,1705077048759,-153.0,0.00026027,2]
[311396924,1705077048768,-453.0353335,0.00026027,2]
[311396926,1705077048778,-153.0,0.00026027,2]
[311396928,1705077048788,-153.0,0.00026027,2]
[311396929,1705077048798,-153.0,0.00026027,2]
[311396930,1705077048807,-153.0,0.00026027,2]
[311396931,1705077048816,-222.4781276,0.00026027,2]
[311396932,1705077048825,-620.39168725,0.00026268,2]
[311396933,1705077048834,-1259.19694,0.000263,2]
[311396934,1705077048843,-1259.19694,0.000263,2]
[311396935,1705077048852,-1921.403531,0.000263,2]
[311396936,1705077048861,-1921.403531,0.000263,2]
[311396937,1705077048870,-460.96128,0.000263,2]
[311396938,1705077048879,-460.96128,0.000263,2]
[311396939,1705077048889,-1131.75,0.000263,2]
[311396940,1705077048899,-500.0,0.000263,2]
[311396941,1705077048909,-504.3,0.000263,2]
[311396942,1705077048918,-562.58,0.000263,2]
[311396943,1705077048927,-500.0,0.000263,2]
[311396944,1705077048936,-1526.16,0.000263,2]
[311396946,1705077048946,-787.58,0.000263,2]
[311396947,1705077048955,-500.0,0.00026301,2]
[311396949,1705077048965,-500.0,0.00026301,2]
[311396951,1705077048974,-616.66,0.00026301,2]
[311396953,1705077048983,-700.41,0.00026301,2]
[311396955,1705077048992,-536.48,0.00026301,2]
[311396957,1705077049001,-2926.2,0.00026301,2]
[311396959,1705077049011,-500.0,0.00026301,2]
[311396961,1705077049020,-1082.8,0.00026301,2]
[311396963,1705077049028,-580.37,0.00026301,2]
[311396964,1705077049037,-6480.9,0.00026301,2]
[311396965,1705077049046,-500.0,0.00026301,2]
[311396967,1705077049055,-150.144,0.0002632,2]
[311396968,1705077049065,-391.0,0.00026455,15]
[311396969,1705077049074,-240.010066,0.00026574,2]
[311396971,1705077049084,-240.010066,0.00026574,2]
[311396973,1705077049093,-1131.75,0.00026574,2]
[311396975,1705077049102,-500.0,0.00026574,2]
[311396977,1705077049111,-504.3,0.00026574,2]
[311396979,1705077049120,-562.58,0.00026574,2]
[311396980,1705077049130,-500.0,0.00026574,2]
[311396982,1705077049139,-1526.16,0.00026574,2]
[311396984,1705077049148,-787.58,0.00026574,2]
[311396986,1705077049158,-547.38839793,0.00026575,2]
[311396988,1705077049168,-500.0,0.00026575,2]
[311396990,1705077049177,-616.66,0.00026575,2]
[311396992,1705077049186,-700.41,0.00026575,2]
[311396994,1705077049195,-536.48,0.00026575,2]
[311396996,1705077049204,-2926.2,0.00026575,2]
[311396998,1705077049214,-500.0,0.00026575,2]
[311397000,1705077049223,-1082.8,0.00026575,2]
[311397002,1705077049232,-580.37,0.00026575,2]
[311397004,1705077049241,-6480.9,0.00026575,2]
[311397006,1705077049250,-500.0,0.00026575,2]
[311397008,1705077049259,-151.0,0.00026575,2]
[311397010,1705077049269,-151.0,0.00026575,2]
[311397012,1705077049279,-1131.75,0.00026848,2]
[311397014,1705077049289,-500.0,0.00026848,2]
[311397016,1705077049298,-504.3,0.00026848,2]
[311397018,1705077049308,-562.58,0.00026848,2]
[311397020,1705077049317,-500.0,0.00026848,2]
[311397022,1705077049327,-1526.16,0.00026848,2]
[311397025,1705077049337,-787.58,0.00026848,2]
[311397026,1705077049346,-500.0,0.00026849,2]
[311397029,1705077049356,-616.66,0.00026849,2]
[311397031,1705077049365,-700.41,0.00026849,2]
[311397033,1705077049375,-536.48,0.00026849,2]
[311397034,1705077049384,-2926.2,0.00026849,2]
[311397037,1705077049395,-529.33,0.00026849,2]
[311397039,1705077049405,-1082.8,0.00026849,2]
[311397040,1705077049415,-580.37,0.00026849,2]
[311397042,1705077049424,-6480.9,0.00026849,2]
[311397044,1705077049433,-500.0,0.00026849,2]
[311397046,1705077049442,-153.0,0.00026849,2]
[311397048,1705077049452,-153.0,0.00026849,2]
[311397050,1705077049461,-153.0,0.00026849,2]
[311397053,1705077049471,-153.0,0.00026849,2]
[311397054,1705077049480,-153.0,0.00026849,2]
[311397056,1705077049489,-153.0,0.00026849,2]
[311397058,1705077049498,-153.0,0.00026849,2]
[311397060,1705077049507,-153.0,0.00026849,2]
[311397062,1705077049516,-153.0,0.00026849,2]
[311397065,1705077049525,-153.0,0.00026849,2]
[311397066,1705077049538,-153.0,0.00026849,2]
[311397069,1705077049547,-153.0,0.00026849,2]
[311397071,1705077049556,-153.0,0.00026849,2]
[311397072,1705077049565,-153.0,0.00026849,2]
[311397075,1705077049575,-153.0,0.00026849,2]
[311397076,1705077049584,-153.0,0.00026849,2]
[311397078,1705077049594,-153.0,0.00026849,2]
[311397080,1705077049602,-153.0,0.00026849,2]
[311397082,1705077049611,-153.0,0.00026849,2]
[311397084,1705077049620,-289.5463958,0.00027,2]
[311397086,1705077049629,-155.00620025,0.00027,10]
[311397088,1705077049638,-460.75992736,0.00027,2]
[311397090,1705077049649,-1500.0,0.00027,2]
[311397092,1705077049658,-1500.0,0.00027,2]
[311397094,1705077049666,-1500.0,0.00027,2]
[311397096,1705077049676,-1500.0,0.00027,2]
[311397098,1705077049685,-1500.0,0.00027,2]
[311397100,1705077049694,-1579.84,0.00027,2]
[311397102,1705077049703,-1500.0,0.00027,2]
[311397104,1705077049712,-151.0,0.00027023,2]
[311397106,1705077049721,-1131.75,0.00027122,2]
[311397108,1705077049731,-500.0,0.00027122,2]
[311397110,1705077049740,-504.3,0.00027122,2]
[311397112,1705077049750,-562.58,0.00027122,2]
[311397114,1705077049759,-249.2491114,0.00027122,2]
[311397116,1705077049768,-1526.16,0.00027122,2]
[311397118,1705077049778,-787.58,0.00027122,2]
[311397120,1705077049787,-500.0,0.00027123,2]